bitfinex-derivatives/quotes_BTCF0:USTF0_20240830
["timestamp","ask_amount","ask_price","bid_price","bid_amount"]
[1725051940694,1.92327942,59091.0,59090.0,0.002]
[1725051941000,1.98399005,59091.0,59090.0,0.002]
[1725051942790,2.06860905,59091.0,59090.0,0.002]
[1725051943297,1.46860905,59091.0,59090.0,0.002]
[1725051943890,0.90021842,59091.0,59090.0,0.002]
[1725051944599,0.70021842,59091.0,59090.0,0.002]
[1725051945188,0.76093193,59091.0,59090.0,0.002]
[1725051945786,0.76093193,59091.0,59090.0,0.08662]
[1725051946198,0.96093193,59091.0,59090.0,0.002]
[1725051946397,0.60013193,59091.0,59090.0,0.002]
[1725051947090,0.96093193,59091.0,59090.0,0.002]
[1725051948600,0.96093193,59091.0,59090.0,0.001]
[1725051948903,0.96093193,59091.0,59090.0,0.002]
[1725051949401,0.96093193,59091.0,59090.0,0.001]
[1725051949604,0.96093193,59091.0,59090.0,0.002]
[1725051949904,0.96093193,59091.0,59090.0,0.08662]
[1725051950805,0.76093193,59091.0,59090.0,0.08662]
[1725051951905,0.96093193,59091.0,59090.0,0.08662]
[1725051952206,0.90021842,59091.0,59090.0,0.08662]
[1725051952899,2.11789842,59091.0,59090.0,0.002]
[1725051953104,2.17861193,59091.0,59090.0,0.002]
[1725051953896,2.06861193,59091.0,59090.0,0.002]
[1725051954408,2.15323093,59091.0,59090.0,0.002]
[1725051954905,1.55323093,59091.0,59090.0,0.002]
[1725051955107,1.04555093,59091.0,59090.0,0.002]
[1725051955306,0.62991842,59091.0,59090.0,0.08662]
[1725051955524,0.56091842,59091.0,59090.0,0.08662]
[1725051955901,0.39168042,59091.0,59090.0,0.08662]
[1725051956403,0.39168042,59091.0,59090.0,0.37124]
[1725051956907,0.39168042,59091.0,59090.0,0.28662]
[1725051957104,0.3608,59091.0,59090.0,0.37124]
[1725051957409,0.3608,59091.0,59090.0,0.28662]
[1725051957709,0.3608,59091.0,59090.0,0.37124]
[1725051959009,0.3608,59091.0,59090.0,0.28662]
[1725051959210,0.3608,59091.0,59090.0,0.37124]
[1725051959505,0.3608,59091.0,59090.0,0.28662]
[1725051960209,0.421508,59091.0,59090.0,0.28662]
[1725051960805,0.060708,59091.0,59090.0,0.28662]
[1725051963715,0.060708,59091.0,59090.0,0.35552]
[1725051964816,0.421508,59091.0,59090.0,0.15552]
[1725051965802,0.506127,59091.0,59090.0,0.15552]
[1725051967312,0.445419,59091.0,59090.0,0.15552]
[1725051967714,0.445419,59091.0,59090.0,0.15452]
[1725051968205,0.445419,59091.0,59090.0,0.15352]
[1725051970204,0.530038,59091.0,59090.0,0.08462]
[1725051970540,0.445419,59091.0,59090.0,0.08462]
[1725051972717,0.084619,59091.0,59090.0,0.08462]
[1725051974918,0.445419,59091.0,59090.0,0.08462]
[1725051975821,0.445419,59091.0,59090.0,0.20462]
[1725051976129,0.084606,59101.0,59090.0,0.20462]
[1725051976130,0.060708,59103.0,59090.0,0.20462]
[1725051976314,0.084609,59099.0,59098.0,0.204606]
[1725051976515,0.09289711,59099.0,59098.0,0.204606]
[1725051977923,0.00828811,59099.0,59098.0,0.205606]
[1725051978125,0.084604,59102.0,59101.0,0.084605]
[1725051978717,0.09311231,59102.0,59101.0,0.084605]
[1725051979120,0.09311231,59102.0,59101.0,0.085605]
[1725051979818,0.36212,59106.0,59103.0,0.084602]
[1725051980122,0.3608,59106.0,59105.0,0.204599]
[1725051980329,0.86836,59106.0,59105.0,0.204599]
[1725051980629,0.89943349,59106.0,59105.0,0.204599]
[1725051981323,0.53863349,59106.0,59105.0,0.085599]
[1725051981526,0.53863349,59106.0,59105.0,0.086599]
[1725051982230,0.09178149,59106.0,59105.0,0.086599]
[1725051984318,0.17637949,59106.0,59105.0,0.086599]
[1725051984517,0.24584135,59106.0,59105.0,0.086599]
[1725051984929,0.24584135,59106.0,59105.0,0.085599]
[1725051985134,0.24584135,59106.0,59105.0,0.086599]
[1725051986426,0.24584135,59106.0,59105.0,0.07793911]
[1725051987132,0.51606312,59106.0,59105.0,0.07793911]
[1725051987530,0.52876461,59106.0,59105.0,0.07793911]
[1725051988036,0.24584135,59106.0,59105.0,0.07793911]
[1725051988232,0.09178149,59106.0,59105.0,0.36713711]
[1725051988439,0.060708,59106.0,59105.0,0.36713711]
[1725051988830,0.060708,59106.0,59105.0,0.07793911]
[1725051989027,0.23775347,59111.0,59110.0,0.084592]
[1725051989236,0.41304089,59111.0,59110.0,0.084592]
[1725051989835,0.17528742,59111.0,59110.0,0.084592]
[1725051990341,0.11459565,59111.0,59110.0,0.085592]
[1725051991240,0.11459565,59111.0,59110.0,0.086592]
[1725051993541,0.03000565,59111.0,59110.0,0.086592]
[1725051993735,0.084587,59114.0,59113.0,0.084587]
[1725051994327,0.09288595,59114.0,59113.0,0.084587]
[1725051994535,0.1230822,59114.0,59113.0,0.084587]
[1725051994939,0.1230822,59114.0,59113.0,0.085587]
[1725051995126,0.1230822,59114.0,59113.0,0.086587]
[1725051997645,1.3151492,59114.0,59113.0,0.002]
[1725051997842,1.37584097,59114.0,59113.0,0.002]
[1725051998047,1.65274097,59114.0,59113.0,0.002]
[1725051999447,1.73732797,59114.0,59113.0,0.002]
[1725052000042,1.70732797,59114.0,59113.0,0.002]
[1725052000344,1.10732797,59114.0,59113.0,0.002]
[1725052001940,1.70732797,59114.0,59113.0,0.002]
[1725052003445,0.084605,59101.0,59100.0,0.3608]
[1725052003647,0.084606,59100.0,59099.0,0.00025397]
[1725052003851,1.014918,59100.0,59099.0,0.00025397]
[1725052004047,1.75000977,59100.0,59099.0,0.00025397]
[1725052004643,1.66540377,59100.0,59099.0,0.00025397]
[1725052004942,0.95540377,59100.0,59099.0,0.00025397]
[1725052005142,0.894712,59100.0,59099.0,0.00025397]
[1725052006252,0.92609519,59100.0,59099.0,0.00025397]
[1725052007648,0.85169519,59100.0,59099.0,0.00025397]
[1725052008553,0.88169519,59100.0,59099.0,0.00025397]
[1725052012251,1.48169519,59100.0,59099.0,0.00025397]
[1725052012558,0.88169519,59100.0,59099.0,0.00025397]
[1725052012855,1.48169519,59100.0,59099.0,0.00025397]
[1725052013159,0.88169519,59100.0,59099.0,0.00025397]
[1725052013364,1.48169519,59100.0,59099.0,0.00025397]
[1725052013571,0.88169519,59100.0,59099.0,0.00025397]
[1725052014754,0.37409519,59100.0,59099.0,0.00025397]
[1725052015956,0.88169519,59100.0,59099.0,0.00025397]
[1725052017260,1.48169519,59100.0,59099.0,0.00025397]
[1725052017560,0.88169519,59100.0,59099.0,0.00025397]
[1725052017765,1.48169519,59100.0,59099.0,0.00025397]
[1725052018266,0.88169519,59100.0,59099.0,0.00025397]
[1725052018470,0.23059519,59100.0,59099.0,0.00025397]
[1725052019164,0.59139519,59100.0,59099.0,0.00025397]
[1725052020563,1.15970418,59100.0,59099.0,0.00025397]
[1725052020767,0.65210418,59100.0,59099.0,0.00025397]
[1725052021462,0.59139519,59100.0,59099.0,0.00025397]
[1725052021957,1.17240811,59100.0,59099.0,0.00025397]
[1725052022163,0.65210418,59100.0,59099.0,0.00025397]
[1725052022369,1.11169871,59100.0,59099.0,0.00025397]
[1725052022664,0.66480785,59100.0,59099.0,0.00025397]
[1725052022876,0.60409886,59100.0,59099.0,0.00025397]
[1725052023167,0.66480785,59100.0,59099.0,0.00025397]
[1725052023469,0.60409886,59100.0,59099.0,0.00025397]
[1725052023670,0.66480761,59100.0,59099.0,0.00025397]
[1725052023963,0.59139519,59100.0,59099.0,0.00025397]
[1725052024272,0.66480768,59100.0,59099.0,0.00025397]
[1725052024470,0.65210418,59100.0,59099.0,0.00025397]
[1725052025265,0.59139519,59100.0,59099.0,0.00025397]
[1725052026067,0.60409873,59100.0,59099.0,0.00025397]
[1725052026367,0.66480772,59100.0,59099.0,0.00025397]
[1725052026563,0.60409873,59100.0,59099.0,0.00025397]
[1725052026762,0.65210418,59100.0,59099.0,0.00025397]
[1725052026961,0.59139519,59100.0,59099.0,0.00025397]
[1725052027266,0.65210418,59100.0,59099.0,0.00025397]
[1725052027470,0.59139519,59100.0,59099.0,0.00025397]
[1725052028863,0.60409903,59100.0,59099.0,0.00025397]
[1725052029272,0.57810984,59100.0,59099.0,0.00025397]
[1725052029565,0.69322883,59100.0,59099.0,0.00025397]
[1725052029769,0.084628,59085.0,59074.0,0.084643]
[1725052029967,0.084628,59085.0,59072.0,0.3608]
[1725052029968,0.084638,59078.0,59077.0,0.0682]
[1725052030265,0.445434,59081.0,59080.0,0.084635]
[1725052030473,0.45409276,59081.0,59080.0,0.084635]
[1725052031878,0.45409276,59081.0,59080.0,0.098635]
[1725052032969,0.45409276,59081.0,59080.0,0.112635]
[1725052034372,0.48452343,59081.0,59080.0,0.112635]
[1725052036175,0.12372343,59081.0,59080.0,0.112635]
[1725052040970,0.12372343,59081.0,59080.0,0.473435]
[1725052041370,0.12372343,59081.0,59080.0,0.112635]
[1725052072398,0.18444222,59081.0,59080.0,0.112635]
[1725052073499,0.12372343,59081.0,59080.0,0.112635]
[1725052073900,0.11506467,59081.0,59080.0,0.112635]
[1725052074894,0.03043067,59081.0,59080.0,0.19727]
[1725052075205,0.00025324,59086.0,59085.0,0.253884]
[1725052075503,0.06071879,59103.0,59102.0,0.084603]
[1725052075700,0.14071879,59103.0,59097.0,0.084609]
[1725052075905,0.06071879,59102.0,59097.0,0.084609]
[1725052076109,0.06071879,59101.0,59097.0,0.084609]
[1725052076401,0.084609,59098.0,59097.0,0.084609]
[1725052077191,0.084609,59098.0,59097.0,0.084549]
[1725052077496,0.084609,59098.0,59093.0,0.00025376]
[1725052077497,0.084615,59094.0,59093.0,0.00025376]
[1725052077697,0.61003,59094.0,59093.0,0.00025376]
[1725052078296,0.67074879,59094.0,59093.0,0.00025376]
[1725052078495,0.61003,59094.0,59093.0,0.00025376]
[1725052078798,0.445415,59094.0,59093.0,0.00425376]
[1725052079607,0.084615,59094.0,59093.0,0.00425376]
[1725052080194,0.084615,59094.0,59093.0,0.00825376]
[1725052080506,0.11438445,59094.0,59093.0,0.00825376]
[1725052081005,0.47518445,59094.0,59093.0,0.00825376]
[1725052081401,0.32369897,59094.0,59093.0,0.00825376]
[1725052081595,0.1404,59097.0,59093.0,0.00825376]
[1725052081790,0.084615,59094.0,59093.0,0.00825376]
[1725052082810,0.084615,59094.0,59093.0,0.00425376]
[1725052082992,0.084615,59094.0,59093.0,0.00825376]
[1725052083907,0.12816874,59097.0,59093.0,0.00825376]
[1725052084105,0.12816874,59097.0,59096.0,0.084612]
[1725052084106,0.03085474,59097.0,59096.0,0.084612]
[1725052084313,0.06071879,59109.0,59108.0,0.084595]
[1725052084603,0.03086311,59109.0,59108.0,0.084595]
[1725052084808,0.03086311,59109.0,59106.0,0.3608]
[1725052084809,0.084588,59113.0,59111.0,0.084589]
[1725052085107,0.084588,59113.0,59106.0,0.3608]
[1725052085108,0.084588,59113.0,59112.0,0.084589]
[1725052085307,0.09326695,59113.0,59112.0,0.084589]
[1725052086908,0.12451726,59113.0,59112.0,0.085589]
[1725052087104,0.12451726,59113.0,59112.0,0.001]
[1725052087305,0.48531726,59113.0,59112.0,0.001]
[1725052087817,0.48531726,59113.0,59112.0,0.002]
[1725052091722,0.40072926,59113.0,59112.0,0.086589]
[1725052092228,0.03992926,59113.0,59112.0,0.086589]
[1725052092531,0.445385,59115.0,59113.0,0.084587]
[1725052092918,0.45390502,59115.0,59113.0,0.084587]
[1725052093331,0.45390502,59115.0,59114.0,0.084586]
[1725052094126,0.36932002,59115.0,59114.0,0.084586]
[1725052094331,0.3608,59115.0,59114.0,0.084586]
[1725052094926,0.3608,59115.0,59114.0,0.085586]
[1725052095624,0.42151879,59115.0,59114.0,0.086586]
[1725052096333,0.06071879,59115.0,59114.0,0.086586]
[1725052102841,0.03858686,59116.0,59115.0,0.084585]
[1725052103043,0.3608,59117.0,59116.0,0.084583]
[1725052103436,0.03005144,59117.0,59116.0,0.529966]
[1725052103740,0.06071879,59122.0,59118.0,0.084577]
[1725052103741,0.084579,59119.0,59118.0,0.084577]
[1725052103933,0.09305869,59119.0,59118.0,0.084577]
[1725052104629,0.11542597,59122.0,59121.0,0.084576]
[1725052106142,0.11542597,59122.0,59121.0,0.085576]
[1725052106843,0.11542597,59122.0,59121.0,0.086576]
[1725052110541,0.2456156,59122.0,59121.0,0.086576]
[1725052111740,0.2456156,59122.0,59121.0,0.084576]
[1725052111741,0.17614476,59122.0,59121.0,0.084576]
[1725052112439,0.2456156,59122.0,59121.0,0.084576]
[1725052112745,0.17614476,59122.0,59121.0,0.084576]
[1725052112952,0.2456156,59122.0,59121.0,0.084576]
[1725052113151,0.2456156,59122.0,59121.0,0.445376]
[1725052113350,0.09156876,59122.0,59121.0,0.445376]
[1725052113558,0.1610396,59122.0,59121.0,0.445376]
[1725052114857,0.09156876,59122.0,59121.0,0.445376]
[1725052115157,0.09156876,59122.0,59121.0,1.037392]
[1725052115655,0.155559,59134.0,59121.0,1.037392]
[1725052115656,0.3608,59165.0,59126.0,0.3608]
[1725052115854,0.06065672,59160.0,59158.0,0.3608]
[1725052116057,0.06065672,59159.0,59158.0,0.3608]
[1725052116355,0.06065672,59159.0,59158.0,0.445323]
[1725052117543,0.08481,59164.0,59161.0,0.084519]
[1725052117752,0.08481,59164.0,59158.0,0.3618]
[1725052118459,0.08481,59164.0,59162.0,0.084517]
[1725052119351,0.08481,59164.0,59163.0,0.3608]
[1725052120658,0.08481,59166.0,59165.0,0.084513]
[1725052120848,0.03101895,59171.0,59163.0,0.3618]
[1725052121051,0.0643,59179.0,59171.0,0.084504]
[1725052121350,0.0643,59179.0,59172.0,0.084503]
[1725052121351,0.07275984,59179.0,59172.0,0.084503]
[1725052121651,0.07275984,59179.0,59175.0,0.084499]
[1725052122260,0.07275984,59179.0,59178.0,0.084495]
[1725052123252,0.07275984,59179.0,59178.0,0.085495]
[1725052123753,0.07275984,59179.0,59178.0,0.086495]
[1725052125156,0.57971984,59179.0,59178.0,0.002]
[1725052125860,0.59971984,59179.0,59178.0,0.002]
[1725052126261,0.66421284,59179.0,59178.0,0.002]
[1725052126455,0.15725284,59179.0,59178.0,0.002]
[1725052128862,1.37421284,59179.0,59178.0,0.002]
[1725052129062,0.83484201,59179.0,59178.0,0.002]
[1725052129363,0.15725284,59179.0,59178.0,0.002]
[1725052129759,0.17725284,59179.0,59178.0,0.002]
[1725052131560,0.15725284,59179.0,59178.0,0.002]
[1725052131758,0.084493,59179.0,59178.0,0.086494]
[1725052132464,0.17310915,59179.0,59178.0,0.086494]
[1725052132665,0.09310915,59179.0,59178.0,0.086494]
[1725052135962,0.16310915,59179.0,59178.0,0.086494]
[1725052136167,0.16310915,59179.0,59178.0,0.002]
[1725052137563,0.24760215,59179.0,59178.0,0.002]
[1725052137765,0.24760215,59179.0,59178.0,0.001]
[1725052137971,0.24760215,59179.0,59178.0,0.002]
[1725052140067,0.60840215,59179.0,59178.0,0.002]
[1725052142563,0.69289515,59179.0,59178.0,0.002]
[1725052142769,0.76369515,59179.0,59178.0,0.002]
[1725052147167,0.69289515,59179.0,59178.0,0.002]
[1725052147981,0.59767865,59179.0,59178.0,0.002]
[1725052148183,0.71767865,59179.0,59178.0,0.002]
[1725052148666,0.72595214,59179.0,59178.0,0.002]
[1725052149169,0.77784106,59179.0,59178.0,0.002]
[1725052151671,1.27784106,59179.0,59178.0,0.002]
[1725052151881,1.33847286,59179.0,59178.0,0.002]
[1725052153478,1.33847239,59179.0,59178.0,0.002]
[1725052155985,1.38513939,59179.0,59178.0,0.002]
[1725052157069,1.18064639,59179.0,59178.0,0.002]
[1725052157274,0.084495,59178.0,59177.0,0.084495]
[1725052157482,0.19701525,59178.0,59177.0,0.084495]
[1725052157878,0.69701525,59178.0,59177.0,0.084495]
[1725052158885,0.69701525,59178.0,59177.0,0.085495]
[1725052159779,0.69701525,59178.0,59177.0,0.086495]
[1725052160482,0.11252025,59178.0,59177.0,0.086495]
[1725052161185,0.11252025,59178.0,59177.0,0.170991]
[1725052161383,0.33228663,59178.0,59177.0,0.170991]
[1725052161878,0.11252025,59178.0,59177.0,0.170991]
[1725052162277,0.07609434,59178.0,59177.0,1.362447]
[1725052162984,0.06937409,59178.0,59177.0,1.362447]
[1725052163188,0.33961632,59180.0,59179.0,0.253479]
[1725052163488,0.33961625,59180.0,59179.0,0.445293]
[1725052163694,0.33961625,59180.0,59179.0,1.552213]
[1725052163984,0.09279638,59185.0,59184.0,0.084486]
[1725052164978,0.00831138,59185.0,59184.0,0.084486]
[1725052165283,0.47782227,59188.0,59187.0,0.084482]
[1725052165485,0.47638227,59188.0,59187.0,0.084482]
[1725052165787,0.48493469,59188.0,59187.0,0.084482]
[1725052166378,0.48493469,59188.0,59187.0,0.085482]
[1725052167389,0.48493469,59188.0,59187.0,0.086482]
[1725052167978,0.49761978,59188.0,59187.0,0.086482]
[1725052168282,0.12826736,59188.0,59187.0,0.086482]
[1725052168478,0.04378636,59188.0,59187.0,0.086482]
[1725052168690,0.55209266,59188.0,59187.0,0.086482]
[1725052168993,0.05209266,59188.0,59187.0,0.086482]
[1725052169294,0.03940757,59188.0,59187.0,0.086482]
[1725052169594,0.01268509,59189.0,59188.0,0.08448]
[1725052169890,0.5,59189.0,59188.0,0.08448]
[1725052170188,0.02110257,59189.0,59188.0,0.08448]
[1725052170388,0.00841748,59189.0,59188.0,0.08448]
[1725052170590,0.084478,59190.0,59189.0,0.084479]
[1725052171090,0.59283628,59190.0,59189.0,0.084479]
[1725052171288,0.60552137,59190.0,59189.0,0.084479]
[1725052171491,0.10552137,59190.0,59189.0,0.084479]
[1725052171789,0.12318792,59190.0,59189.0,0.084479]
[1725052172090,0.62318792,59190.0,59189.0,0.084479]
[1725052172388,0.13587301,59190.0,59189.0,0.084479]
[1725052172575,0.12318792,59190.0,59189.0,0.084479]
[1725052172977,0.62318792,59190.0,59189.0,0.084479]
[1725052173189,0.63587301,59190.0,59189.0,0.084479]
[1725052173375,0.13587301,59190.0,59189.0,0.084479]
[1725052173581,0.58448,59189.0,59186.0,0.084483]
[1725052173776,0.084481,59188.0,59186.0,0.084483]
[1725052173981,0.09312786,59188.0,59186.0,0.084483]
[1725052174390,0.59312786,59188.0,59186.0,0.084483]
[1725052174690,0.084482,59187.0,59186.0,0.084483]
[1725052175586,0.084483,59186.0,59178.0,0.0649]
[1725052175793,0.084485,59185.0,59183.0,0.084487]
[1725052176090,0.5,59189.0,59184.0,0.3608]
[1725052176392,0.5,59189.0,59188.0,0.084479]
[1725052176581,0.5,59190.0,59189.0,0.084479]
[1725052176781,0.3608,59193.0,59189.0,0.084479]
[1725052176782,0.36915091,59193.0,59189.0,0.084479]
[1725052176983,0.584477,59190.0,59189.0,0.084479]
[1725052177191,0.5,59190.0,59189.0,0.084479]
[1725052177391,0.084476,59191.0,59190.0,0.084477]
[1725052177796,0.084479,59189.0,59182.0,0.3608]
[1725052178090,0.42142164,59188.0,59187.0,0.084482]
[1725052178479,0.084484,59186.0,59183.0,0.001]
[1725052178687,0.084484,59186.0,59184.0,0.084485]
[1725052178887,0.084484,59186.0,59185.0,0.084485]
[1725052179081,0.09287198,59186.0,59185.0,0.084485]
[1725052179498,0.00838798,59186.0,59185.0,0.084485]
[1725052179793,0.8608,59188.0,59186.0,0.084482]
[1725052179989,0.945281,59188.0,59187.0,0.084482]
[1725052180187,0.95361232,59188.0,59187.0,0.084482]
[1725052180392,0.45361232,59188.0,59187.0,0.084482]
[1725052182186,0.46361232,59188.0,59187.0,0.084482]
[1725052182381,0.95361232,59188.0,59187.0,0.084482]
[1725052182588,0.45361232,59188.0,59187.0,0.084482]
[1725052182992,0.95361232,59188.0,59187.0,0.084482]
[1725052183392,1.06361232,59188.0,59187.0,0.084482]
[1725052183591,0.084487,59184.0,59182.0,0.445288]
[1725052184090,0.084487,59184.0,59183.0,0.084487]
[1725052184488,0.084483,59186.0,59182.0,0.3608]
[1725052184696,0.084483,59186.0,59185.0,0.084484]
[1725052184887,0.14510464,59186.0,59185.0,0.084484]
[1725052185389,0.07403132,59188.0,59185.0,0.084484]
[1725052186284,0.084483,59186.0,59185.0,0.084484]
[1725052187194,0.084483,59186.0,59185.0,0.085484]
[1725052187594,0.084483,59186.0,59185.0,0.446284]
[1725052187895,0.084483,59186.0,59185.0,0.445284]
[1725052188116,0.084483,59186.0,59185.0,0.446284]
[1725052190100,0.084483,59186.0,59185.0,0.3618]
[1725052193096,0.084483,59186.0,59185.0,0.001]
[1725052193296,0.14509959,59186.0,59185.0,0.3618]
[1725052193893,0.084483,59186.0,59185.0,0.446285]
[1725052194405,0.14509959,59186.0,59185.0,0.446285]
[1725052196405,0.06061659,59186.0,59185.0,0.446285]
[1725052199593,0.06061659,59186.0,59185.0,0.807085]
[1725052200407,0.06061659,59186.0,59185.0,0.89157]
[1725052201198,0.50128,59187.0,59186.0,0.084483]
[1725052201403,0.5,59187.0,59186.0,0.084483]
[1725052202303,0.5,59187.0,59186.0,0.530766]
[1725052202699,0.5,59187.0,59186.0,0.531766]
[1725052205406,0.51268356,59187.0,59186.0,0.531766]
[1725052207602,0.51268356,59187.0,59186.0,1.123129]
[1725052207807,0.00833132,59188.0,59187.0,0.168964]
[1725052208010,0.06455175,59196.0,59195.0,0.16894]
[1725052208207,0.56455175,59199.0,59198.0,0.168932]
[1725052208504,0.06455175,59199.0,59198.0,0.168932]
[1725052208712,0.67552109,59208.0,59204.0,0.084456]
[1725052208713,0.084457,59205.0,59204.0,0.084456]
[1725052209103,0.06455175,59207.0,59205.0,0.084456]
[1725052209104,0.0518632,59206.0,59205.0,0.084456]
[1725052209705,0.0126827,59207.0,59206.0,0.084455]
[1725052210817,0.06454504,59207.0,59206.0,0.445255]
[1725052211411,0.05186234,59207.0,59206.0,0.445255]
[1725052211914,0.05158026,59208.0,59207.0,0.084453]
[1725052213116,0.03889756,59208.0,59207.0,0.086453]
[1725052213310,0.50128,59209.0,59208.0,0.084452]
[1725052213515,0.5,59209.0,59208.0,0.084452]
[1725052213915,0.55149722,59209.0,59208.0,0.084452]
[1725052214720,0.55149722,59209.0,59208.0,0.085452]
[1725052215223,0.53881775,59209.0,59208.0,0.086452]
[1725052216117,0.59067584,59209.0,59208.0,0.086452]
[1725052216320,0.58207421,59209.0,59208.0,0.086452]
[1725052216520,0.08207421,59209.0,59208.0,0.086452]
[1725052217117,0.58207421,59209.0,59208.0,0.086452]
[1725052218418,0.08207421,59209.0,59208.0,0.086452]
[1725052219522,0.08207421,59209.0,59208.0,0.002]
[1725052220122,0.49569036,59218.0,59208.0,0.002]
[1725052220326,0.5,59209.0,59208.0,0.002]
[1725052220622,0.24737128,59209.0,59208.0,0.002]
[1725052220829,0.084457,59204.0,59201.0,0.35308542]
[1725052221027,0.09298068,59204.0,59201.0,0.35308542]
[1725052221228,0.08446,59202.0,59201.0,0.35308542]
[1725052221424,0.06061659,59202.0,59201.0,0.43754742]
[1725052222019,0.06061659,59202.0,59201.0,0.43954742]
[1725052223225,0.00852368,59204.0,59201.0,0.43954742]
[1725052223429,0.585336,59205.0,59201.0,0.43954742]
[1725052223636,0.6142649,59205.0,59202.0,0.084459]
[1725052223930,0.62250934,59205.0,59202.0,0.084459]
[1725052224716,0.084458,59204.0,59202.0,0.084459]
[1725052224921,0.084458,59204.0,59202.0,0.085459]
[1725052225626,0.084459,59203.0,59202.0,0.086459]
[1725052225827,0.084458,59204.0,59202.0,0.086459]
[1725052226028,0.084458,59204.0,59203.0,0.3608]
[1725052226624,0.168918,59203.0,59202.0,0.002]
[1725052226821,0.168918,59203.0,59196.0,0.35305332]
[1725052226822,0.084467,59197.0,59196.0,0.35305332]
[1725052227024,0.21272159,59197.0,59196.0,0.35305332]
[1725052228326,0.71272159,59197.0,59196.0,0.35405332]
[1725052228533,0.71372159,59197.0,59196.0,0.35505332]
[1725052228728,0.21372159,59197.0,59196.0,0.35505332]
[1725052229340,0.82876796,59197.0,59196.0,0.35505332]
[1725052229629,0.084469,59196.0,59187.0,0.34393332]
[1725052229830,0.0697,59195.0,59187.0,0.34305332]
[1725052230032,0.6797,59195.0,59187.0,0.34305332]
[1725052230231,0.08448,59188.0,59187.0,0.34305332]
[1725052230430,0.084488,59183.0,59182.0,0.3608]
[1725052231037,0.584488,59183.0,59182.0,0.3608]
[1725052231433,0.084488,59183.0,59182.0,0.3628]
[1725052231735,0.084488,59183.0,59182.0,0.003]
[1725052232040,0.584488,59183.0,59182.0,0.003]
[1725052232438,0.084488,59183.0,59182.0,0.003]
[1725052232831,0.714648,59183.0,59182.0,0.003]
[1725052233235,0.214648,59183.0,59182.0,0.003]
[1725052233435,0.24507214,59183.0,59182.0,0.003]
[1725052233838,0.74807214,59183.0,59182.0,0.002]
[1725052234236,0.084492,59180.0,59177.0,0.44554832]
[1725052234640,0.5,59179.0,59177.0,0.36105332]
[1725052235142,0.084495,59178.0,59177.0,0.36105332]
[1725052235341,0.584495,59178.0,59177.0,0.36205332]
[1725052235537,0.584495,59178.0,59177.0,0.36405332]
[1725052235742,0.084495,59178.0,59177.0,0.36405332]
[1725052236948,0.084495,59178.0,59177.0,0.36505332]
[1725052238034,0.14511159,59178.0,59177.0,0.36505332]
[1725052238343,0.084495,59178.0,59177.0,0.36505332]
[1725052239748,0.584495,59178.0,59177.0,0.36505332]
[1725052240141,0.584495,59178.0,59177.0,0.00425332]
[1725052240142,0.084495,59178.0,59177.0,0.00425332]
[1725052240938,0.60979,59178.0,59177.0,0.00425332]
[1725052241346,1.23995,59178.0,59177.0,0.00425332]
[1725052243946,0.87915,59178.0,59177.0,0.00425332]
[1725052244139,1.23995,59178.0,59177.0,0.00425332]
[1725052245850,0.87915,59178.0,59177.0,0.00425332]
[1725052248260,1.23995,59178.0,59177.0,0.00425332]
[1725052248555,1.30057628,59178.0,59177.0,0.00425332]
[1725052253458,1.23995,59178.0,59177.0,0.00425332]
[1725052254156,1.324445,59178.0,59177.0,0.00425332]
[1725052254557,2.431405,59178.0,59177.0,0.00425332]
[1725052255173,2.49203866,59178.0,59177.0,0.00425332]
[1725052255460,2.49203866,59178.0,59177.0,1e-08]
[1725052256353,1.89203866,59178.0,59177.0,1e-08]
[1725052256550,1.83754366,59178.0,59177.0,1e-08]
[1725052256862,1.92203866,59178.0,59177.0,1e-08]
[1725052257064,0.169004,59173.0,59172.0,0.00025332]
[1725052257253,0.659804,59173.0,59172.0,0.00025332]
[1725052257653,1.159804,59173.0,59172.0,0.00025332]
[1725052257957,0.084514,59165.0,59162.0,0.445317]
[1725052258151,0.13016,59164.0,59162.0,0.437317]
[1725052258459,0.5,59163.0,59162.0,0.437317]
[1725052258968,0.584516,59163.0,59162.0,0.3528]
[1725052260356,0.584516,59163.0,59162.0,0.3808]
[1725052261065,0.584516,59163.0,59162.0,0.028]
[1725052261249,0.669032,59163.0,59162.0,0.028]
[1725052261863,0.669032,59163.0,59157.0,0.00025354]
[1725052261864,0.169046,59158.0,59157.0,0.00025354]
[1725052262159,0.169046,59158.0,59146.0,0.3608]
[1725052262160,0.084525,59157.0,59149.0,0.05635354]
[1725052262465,0.3608,59154.0,59149.0,0.05635354]
[1725052262965,0.084535,59150.0,59149.0,0.05635354]
[1725052263174,0.200735,59150.0,59149.0,0.05635354]
[1725052263460,0.186735,59150.0,59149.0,0.05635354]
[1725052263666,0.686735,59150.0,59149.0,0.05635354]
[1725052264065,0.187735,59150.0,59149.0,0.013]
[1725052264259,0.247735,59150.0,59149.0,0.013]
[1725052264563,0.22108692,59150.0,59149.0,0.027]
[1725052264860,0.72108692,59150.0,59149.0,0.027]
[1725052265064,0.22108692,59150.0,59149.0,0.027]
[1725052265466,0.30562192,59150.0,59149.0,0.027]
[1725052265655,0.80562192,59150.0,59149.0,0.027]
[1725052265859,0.80562192,59150.0,59149.0,0.013]
[1725052266061,0.30662192,59150.0,59149.0,0.013]
[1725052266671,0.67642192,59150.0,59149.0,0.013]
[1725052267172,0.30662192,59150.0,59149.0,0.013]
[1725052267476,0.39115692,59150.0,59149.0,0.013]
[1725052267772,0.80662192,59150.0,59149.0,0.013]
[1725052267962,0.30662192,59150.0,59149.0,0.013]
[1725052268161,0.084542,59145.0,59144.0,0.00017062]
[1725052268363,0.204542,59145.0,59144.0,0.00017062]
[1725052268567,0.289084,59145.0,59144.0,0.00017062]
[1725052268769,0.084553,59137.0,59134.0,0.3286]
[1725052268972,0.575555,59136.0,59134.0,0.3286]
[1725052269165,0.8608,59136.0,59134.0,0.3206]
[1725052269368,0.084549,59140.0,59135.0,0.0706]
[1725052269571,0.5,59136.0,59135.0,0.0706]